bitfinex/quotes_BTCUSD_20240908
["timestamp","ask_amount","ask_price","bid_price","bid_amount"]
[1725807398245,0.91907308,54319.0,54318.0,0.00163]
[1725807398470,0.91907308,54319.0,54318.0,0.00563]
[1725807398698,0.91907308,54319.0,54318.0,0.01163]
[1725807399127,0.91907308,54319.0,54318.0,0.00763]
[1725807399356,0.91907308,54319.0,54318.0,0.01163]
[1725807400022,0.91907308,54319.0,54318.0,0.00563]
[1725807400023,1.21362908,54319.0,54318.0,0.00563]
[1725807400249,1.37903052,54319.0,54318.0,0.00563]
[1725807400746,1.37903052,54319.0,54318.0,0.00163]
[1725807400956,1.37903052,54319.0,54318.0,0.00463]
[1725807401397,1.61167777,54319.0,54318.0,0.00163]
[1725807401623,1.37903052,54319.0,54318.0,0.00163]
[1725807401849,1.37903052,54319.0,54318.0,0.00363]
[1725807401850,1.38103052,54319.0,54318.0,0.00363]
[1725807402074,1.58967315,54319.0,54318.0,0.00363]
[1725807402283,1.77465622,54319.0,54318.0,0.00163]
[1725807402434,1.71331675,54319.0,54318.0,0.00163]
[1725807402645,1.78132939,54319.0,54318.0,0.00163]
[1725807402874,1.54871215,54319.0,54318.0,0.00163]
[1725807403240,1.7815849,54319.0,54318.0,0.00163]
[1725807403592,1.8815849,54319.0,54318.0,0.00163]
[1725807404007,1.8765849,54319.0,54318.0,0.00163]
[1725807404387,1.8805849,54319.0,54318.0,0.00163]
[1725807404785,1.8815849,54319.0,54318.0,0.00163]
[1725807405116,1.46157851,54319.0,54318.0,0.00163]
[1725807407267,1.38157851,54319.0,54318.0,0.00163]
[1725807409182,1.41043934,54319.0,54318.0,0.00163]
[1725807409855,1.42591323,54319.0,54318.0,0.00163]
[1725807410349,1.3970524,54319.0,54318.0,0.00163]
[1725807410567,1.3329524,54319.0,54318.0,0.00163]
[1725807411647,1.3337674,54319.0,54318.0,0.00163]
[1725807412103,1.36262806,54319.0,54318.0,0.00163]
[1725807412758,1.52840104,54319.0,54318.0,0.00163]
[1725807413213,1.91529489,54319.0,54318.0,0.00163]
[1725807413432,2.48480035,54319.0,54318.0,0.00163]
[1725807413647,2.30030575,54319.0,54318.0,0.00163]
[1725807414095,2.30030575,54319.0,54304.0,0.00163]
[1725807414312,0.79978,54305.0,54304.0,0.00163]
[1725807414578,0.97073941,54305.0,54304.0,0.00163]
[1725807414812,1.07073941,54305.0,54304.0,0.00163]
[1725807415030,1.61187414,54305.0,54304.0,0.00163]
[1725807415472,1.54867414,54305.0,54304.0,0.00163]
[1725807415964,1.55467414,54305.0,54304.0,0.00163]
[1725807416179,1.55367414,54305.0,54304.0,0.00163]
[1725807416395,1.25904214,54305.0,54304.0,0.00163]
[1725807417510,1.25404214,54305.0,54304.0,0.00163]
[1725807417724,1.26604214,54305.0,54304.0,0.00163]
[1725807417948,1.25504214,54305.0,54304.0,0.00163]
[1725807418162,1.20299379,54305.0,54304.0,0.00163]
[1725807418377,1.01553941,54305.0,54304.0,0.00163]
[1725807418583,1.03940748,54305.0,54304.0,0.00163]
[1725807419012,1.21199476,54305.0,54304.0,0.00163]
[1725807419239,1.03940748,54305.0,54304.0,0.00163]
[1725807419449,1.20499476,54305.0,54304.0,0.00163]
[1725807419678,1.21199476,54305.0,54304.0,0.00163]
[1725807419925,1.50662676,54305.0,54304.0,0.00163]
[1725807420153,1.61761258,54305.0,54304.0,0.00163]
[1725807420364,1.70592104,54305.0,54304.0,0.00163]
[1725807420626,1.70292104,54305.0,54304.0,0.00163]
[1725807421094,1.67005297,54305.0,54304.0,0.00163]
[1725807421314,1.67405297,54305.0,54304.0,0.00163]
[1725807421792,1.67505297,54305.0,54304.0,0.00163]
[1725807422015,1.67306218,54305.0,54304.0,0.00163]
[1725807422739,1.71493129,54305.0,54304.0,0.00163]
[1725807422956,1.70193129,54305.0,54304.0,0.00163]
[1725807423165,1.66489024,54305.0,54304.0,0.00163]
[1725807423839,1.65681059,54305.0,54304.0,0.00163]
[1725807424062,1.66381059,54305.0,54304.0,0.00163]
[1725807424267,1.65500213,54305.0,54304.0,0.00163]
[1725807424504,1.67581059,54305.0,54304.0,0.00163]
[1725807424716,1.58750213,54305.0,54304.0,0.00163]
[1725807424944,1.52430213,54305.0,54304.0,0.00163]
[1725807425668,1.22967013,54305.0,54304.0,0.00163]
[1725807425895,1.01807888,54305.0,54304.0,0.00163]
[1725807426309,0.98920977,54305.0,54304.0,0.00163]
[1725807426525,0.69457777,54305.0,54304.0,0.00163]
[1725807426737,0.69457777,54305.0,54304.0,0.06693]
[1725807427213,0.012,54305.0,54304.0,1.04663254]
[1725807427480,0.012,54305.0,54304.0,1.19395054]
[1725807427481,0.016,54305.0,54304.0,1.19395054]
[1725807427710,0.004,54305.0,54304.0,1.19395054]
[1725807428181,0.008,54305.0,54304.0,1.19395054]
[1725807428412,0.05512515,54317.0,54316.0,0.147286]
[1725807428649,0.05512515,54317.0,54316.0,0.292186]
[1725807428882,0.05512515,54318.0,54316.0,0.292186]
[1725807429116,0.05594015,54319.0,54317.0,0.015]
[1725807429349,0.05512515,54318.0,54317.0,0.015]
[1725807430075,0.05512515,54318.0,54317.0,0.01619154]
[1725807430076,0.14728,54318.0,54317.0,0.01619154]
[1725807430309,0.72580219,54318.0,54317.0,0.006]
[1725807430771,0.58798932,54318.0,54317.0,0.006]
[1725807431001,0.72581472,54318.0,54317.0,0.006]
[1725807431228,0.58798932,54318.0,54317.0,0.006]
[1725807431457,0.58798932,54318.0,54317.0,0.005]
[1725807431691,0.29342832,54318.0,54317.0,0.005]
[1725807431919,0.70325209,54318.0,54317.0,0.005]
[1725807432172,0.59298932,54318.0,54317.0,0.005]
[1725807432404,0.59398932,54318.0,54317.0,0.005]
[1725807432894,0.73082302,54318.0,54317.0,0.005]
[1725807433103,0.73482302,54318.0,54317.0,0.005]
[1725807434182,0.73482302,54318.0,54317.0,0.006]
[1725807434400,1.02038402,54318.0,54317.0,0.006]
[1725807434865,1.02338402,54318.0,54317.0,0.005]
[1725807435094,1.02038402,54318.0,54317.0,0.006]
[1725807435351,1.02119902,54318.0,54317.0,0.006]
[1725807435579,1.02419902,54318.0,54317.0,0.005]
[1725807435798,0.736417,54317.0,54316.0,0.005]
[1725807436035,0.88256532,54317.0,54316.0,0.005]
[1725807436488,0.9114258,54317.0,54316.0,0.005]
[1725807437199,0.73643,54316.0,54315.0,0.005]
[1725807437416,0.99286173,54316.0,54315.0,0.005]
[1725807437666,0.25643173,54316.0,54312.0,0.005]
[1725807437926,0.25643173,54316.0,54306.0,0.0634]
[1725807437927,0.736552,54307.0,54306.0,0.0634]
[1725807438152,1.0205815,54307.0,54306.0,0.0684]
[1725807438637,1.0205815,54307.0,54306.0,0.005]
[1725807438859,0.736565,54306.0,54305.0,0.005]
[1725807439088,0.736565,54306.0,54304.0,0.00163]
[1725807439089,0.73658,54305.0,54304.0,0.00663]
[1725807439302,0.99303597,54305.0,54304.0,0.00663]
[1725807441330,0.88272832,54305.0,54304.0,0.00663]
[1725807441796,0.88372832,54305.0,54304.0,0.00663]
[1725807442010,0.73758,54305.0,54304.0,0.00663]
[1725807442223,0.91009395,54305.0,54304.0,0.00663]
[1725807442667,0.91009395,54305.0,54304.0,0.00863]
[1725807443375,1.02040182,54305.0,54304.0,0.00863]
[1725807443611,0.91009395,54305.0,54304.0,0.00863]
[1725807444279,0.91009395,54305.0,54304.0,0.00663]
[1725807444523,1.43898529,54305.0,54304.0,0.00163]
[1725807444756,1.43798529,54305.0,54304.0,0.00363]
[1725807445216,1.43798529,54305.0,54304.0,0.00163]
[1725807445217,1.44298529,54305.0,54304.0,0.00163]
[1725807445430,1.44098529,54305.0,54304.0,0.00163]
[1725807445879,1.44798529,54305.0,54304.0,0.00163]
[1725807446120,1.44098529,54305.0,54304.0,0.00163]
[1725807446552,1.44998529,54305.0,54304.0,0.00163]
[1725807446774,1.44098529,54305.0,54304.0,0.00163]
[1725807447223,1.43798529,54305.0,54304.0,0.00163]
[1725807447449,1.30872595,54305.0,54304.0,0.00163]
[1725807447893,1.30372595,54305.0,54304.0,0.00163]
[1725807448441,1.72818748,54305.0,54304.0,0.00163]
[1725807448670,1.50653163,54305.0,54304.0,0.00163]
[1725807448891,1.49653163,54305.0,54304.0,0.00163]
[1725807449564,1.50553163,54305.0,54304.0,0.00163]
[1725807449986,1.49653163,54305.0,54304.0,0.00163]
[1725807450223,1.50153163,54305.0,54304.0,0.00163]
[1725807450916,1.49653163,54305.0,54304.0,0.00163]
[1725807451133,1.49953163,54305.0,54304.0,0.00163]
[1725807451610,1.49653163,54305.0,54304.0,0.00163]
[1725807452043,1.50853163,54305.0,54304.0,0.00163]
[1725807452906,1.33606912,54305.0,54304.0,0.00163]
[1725807453153,1.34506912,54305.0,54304.0,0.00163]
[1725807453376,1.50304193,54305.0,54304.0,0.00163]
[1725807453592,1.49804193,54305.0,54304.0,0.00163]
[1725807453813,1.50104193,54305.0,54304.0,0.00163]
[1725807454263,1.49804193,54305.0,54304.0,0.00163]
[1725807454735,1.50304193,54305.0,54304.0,0.00163]
[1725807454944,1.49404193,54305.0,54304.0,0.00163]
[1725807455160,1.35121276,54305.0,54304.0,0.00163]
[1725807455384,1.35821276,54305.0,54304.0,0.00163]
[1725807455580,1.35421276,54305.0,54304.0,0.00163]
[1725807456099,1.36321276,54305.0,54304.0,0.00163]
[1725807456319,1.35421276,54305.0,54304.0,0.00163]
[1725807456533,1.49904268,54305.0,54304.0,0.00163]
[1725807456738,1.20143337,54305.0,54304.0,0.06463]
[1725807456954,1.35821276,54305.0,54304.0,0.06463]
[1725807457165,1.19069881,54305.0,54304.0,0.06463]
[1725807457608,0.89106681,54305.0,54304.0,0.06463]
[1725807458052,0.88506681,54305.0,54304.0,0.06463]
[1725807458276,0.89106681,54305.0,54304.0,0.06463]
[1725807458995,0.97380024,54305.0,54304.0,0.06463]
[1725807459420,0.59643481,54305.0,54304.0,0.06463]
[1725807460495,0.76878398,54305.0,54304.0,0.06463]
[1725807463231,0.90663659,54305.0,54304.0,0.06463]
[1725807464523,0.90670661,54305.0,54304.0,0.06463]
[1725807465597,0.90671094,54305.0,54304.0,0.06463]
[1725807466207,0.76878398,54305.0,54304.0,0.06463]
[1725807466437,0.90671094,54305.0,54304.0,0.06463]
[1725807466894,0.08975312,54305.0,54304.0,0.15752154]
[1725807467561,0.007,54305.0,54304.0,0.15752154]
[1725807467775,0.006,54305.0,54304.0,0.15752154]
[1725807468016,0.001,54305.0,54304.0,0.15952154]
[1725807468877,0.08375937,54305.0,54304.0,0.15952154]
[1725807469263,0.247313,54306.0,54304.0,0.15752154]
[1725807469264,0.35765629,54306.0,54304.0,0.15752154]
[1725807469504,0.147316,54305.0,54304.0,0.15752154]
[1725807469715,0.001,54305.0,54304.0,0.15952154]
[1725807469927,0.08376555,54305.0,54304.0,0.15952154]
[1725807470135,0.35765629,54306.0,54305.0,0.009]
[1725807470381,1.11939462,54306.0,54305.0,0.009]
[1725807470603,0.147316,54305.0,54304.0,0.14933]
[1725807470814,0.61443433,54305.0,54304.0,0.07163]
[1725807471000,0.90906633,54305.0,54304.0,0.06963]
[1725807471247,0.91006633,54305.0,54304.0,0.07163]
[1725807471447,1.02040962,54305.0,54304.0,0.07163]
[1725807472137,1.04880829,54305.0,54304.0,0.00963]
[1725807472354,0.91088133,54305.0,54304.0,0.00863]
[1725807472559,1.0478591,54305.0,54304.0,0.00663]
[1725807472777,0.90988133,54305.0,54304.0,0.00763]
[1725807472998,0.91088133,54305.0,54304.0,0.01063]
[1725807473202,1.20551333,54305.0,54304.0,0.00463]
[1725807473674,1.20451333,54305.0,54304.0,0.00163]
[1725807473976,1.20451333,54305.0,54304.0,0.00563]
[1725807474060,1.51631091,54305.0,54304.0,0.00563]
[1725807474540,1.75796043,54305.0,54304.0,0.00163]
[1725807474753,1.75796043,54305.0,54304.0,0.00263]
[1725807474968,1.75796043,54305.0,54304.0,0.00163]
[1725807475410,1.76396043,54305.0,54304.0,0.00163]
[1725807475625,1.75796043,54305.0,54304.0,0.00163]
[1725807476062,1.76496043,54305.0,54304.0,0.00163]
[1725807476281,1.75796043,54305.0,54304.0,0.00463]
[1725807476730,1.75796043,54305.0,54304.0,0.00163]
[1725807477198,1.76196043,54305.0,54304.0,0.00163]
[1725807477413,1.61496285,54305.0,54304.0,0.00163]
[1725807477630,1.61096285,54305.0,54304.0,0.00163]
[1725807477862,1.62591485,54305.0,54304.0,0.00163]
[1725807478717,1.61791485,54305.0,54304.0,0.00163]
[1725807479183,1.62991485,54305.0,54304.0,0.00163]
[1725807479388,1.62291485,54305.0,54304.0,0.00163]
[1725807479603,1.62691485,54305.0,54304.0,0.00163]
[1725807479805,2.28948371,54305.0,54304.0,0.00163]
[1725807480221,2.10050064,54305.0,54304.0,0.00163]
[1725807480485,1.92135531,54305.0,54304.0,0.00163]
[1725807480712,1.9074684,54305.0,54304.0,0.00163]
[1725807480916,1.9004684,54305.0,54304.0,0.00163]
[1725807481327,1.9094684,54305.0,54304.0,0.00163]
[1725807481534,2.10645147,54305.0,54304.0,0.00163]
[1725807481743,2.09445147,54305.0,54304.0,0.00163]
[1725807482794,2.10645147,54305.0,54304.0,0.00163]
[1725807482979,2.09445147,54305.0,54304.0,0.00163]
[1725807483217,1.9004684,54305.0,54304.0,0.0005075]
[1725807483458,1.9144684,54305.0,54304.0,0.0005075]
[1725807483664,1.84885994,54305.0,54304.0,0.0005075]
[1725807484081,1.84185994,54305.0,54304.0,0.0005075]
[1725807484490,1.85448789,54305.0,54304.0,0.0005075]
[1725807485386,1.93052779,54305.0,54304.0,0.0005075]
[1725807485817,2.11711833,54305.0,54304.0,0.0005075]
[1725807490366,2.13551139,54305.0,54304.0,0.0005075]
[1725807491686,2.05947149,54305.0,54304.0,0.0005075]
[1725807492965,2.06827995,54305.0,54304.0,0.0005075]
[1725807496922,1.86329635,54305.0,54304.0,0.0005075]
[1725807498889,1.85448789,54305.0,54304.0,0.0005075]
[1725807499809,1.86329635,54305.0,54304.0,0.0005075]
[1725807500031,2.17004678,54305.0,54304.0,0.0005075]
[1725807500247,2.25126302,54305.0,54304.0,0.00016373]
[1725807500899,2.55989502,54305.0,54304.0,0.00016373]
[1725807501113,2.55989502,54305.0,54302.0,0.0010725]
[1725807501114,1.40000146,54303.0,54302.0,0.0010725]
[1725807501346,2.01286142,54303.0,54302.0,0.0010725]
[1725807501546,2.57796923,54303.0,54302.0,0.0010725]
[1725807501755,2.51935488,54303.0,54302.0,0.0010725]
[1725807501989,2.60282291,54303.0,54302.0,0.0010725]
[1725807502188,2.58847845,54303.0,54302.0,0.0010725]
[1725807502453,1.031457,54292.0,54291.0,0.00162]
[1725807502677,1.52198943,54292.0,54291.0,0.00162]
[1725807503119,1.5508627,54292.0,54291.0,0.00162]
[1725807504048,1.5578627,54292.0,54291.0,0.00162]
[1725807504267,1.5598627,54292.0,54291.0,0.00162]
[1725807504740,1.70715451,54292.0,54291.0,0.00162]
[1725807504963,1.6379312,54292.0,54291.0,0.00162]
[1725807505189,1.47229163,54292.0,54291.0,0.00162]
[1725807505426,1.6379312,54292.0,54291.0,0.00162]
[1725807508136,1.66455253,54292.0,54291.0,0.00162]
[1725807509426,1.49891296,54292.0,54291.0,0.00162]
[1725807510141,1.66455253,54292.0,54291.0,0.00162]
[1725807510353,1.49891296,54292.0,54291.0,0.00162]
[1725807510914,1.66455253,54292.0,54291.0,0.00162]
[1725807511281,1.49891296,54292.0,54291.0,0.00162]
[1725807512513,1.66455253,54292.0,54291.0,0.00162]
[1725807513464,1.98404461,54292.0,54291.0,0.00162]
[1725807514259,1.72515253,54292.0,54291.0,0.00162]
[1725807514467,1.81476277,54292.0,54291.0,0.00162]
[1725807514675,1.80776277,54292.0,54291.0,0.00162]
[1725807514871,2.10546477,54292.0,54291.0,0.00162]
[1725807515078,2.11346477,54292.0,54291.0,0.00162]
[1725807516109,2.11046477,54292.0,54291.0,0.00162]
[1725807516523,2.10846477,54292.0,54291.0,0.00162]
[1725807516737,2.11846477,54292.0,54291.0,0.00162]
[1725807516942,2.11246477,54292.0,54291.0,0.00162]
[1725807517675,2.12646477,54292.0,54291.0,0.00162]
[1725807517879,2.10246477,54292.0,54291.0,0.00162]
[1725807518094,2.11146477,54292.0,54291.0,0.00162]
[1725807518339,2.12546477,54292.0,54291.0,0.00162]
[1725807519003,2.06486477,54292.0,54291.0,0.00162]
[1725807519214,1.91757296,54292.0,54291.0,0.00162]
[1725807519438,1.62287096,54292.0,54291.0,0.06292]
[1725807519858,1.61387096,54292.0,54291.0,0.06292]
[1725807520084,1.60787096,54292.0,54291.0,0.06292]
[1725807520298,1.6503702,54292.0,54291.0,0.06292]
[1725807520524,1.6423702,54292.0,54291.0,0.06292]
[1725807520738,1.6303702,54292.0,54291.0,0.06292]
[1725807520949,1.6363702,54292.0,54291.0,0.06292]
[1725807521152,1.6463702,54292.0,54291.0,0.06292]
[1725807521600,1.33580961,54292.0,54291.0,0.06292]
[1725807526939,0.71978428,54292.0,54291.0,0.06292]
[1725807527163,0.42508228,54292.0,54291.0,0.06292]
[1725807527401,0.83031525,54292.0,54291.0,0.06292]
[1725807527849,0.03487327,54292.0,54291.0,0.60117354]
[1725807528088,0.06126123,54292.0,54291.0,0.89588154]
[1725807528304,0.06326123,54292.0,54291.0,0.89588154]
[1725807528737,0.05725658,54292.0,54291.0,0.89588154]
[1725807529196,0.05725658,54292.0,54291.0,0.89688154]
[1725807529440,0.002,54292.0,54291.0,0.89688154]
[1725807529645,0.002,54292.0,54291.0,0.89588154]
[1725807529872,0.03186916,54292.0,54291.0,0.89688154]
[1725807530300,0.03086916,54292.0,54291.0,0.89588154]
[1725807530769,0.03186916,54292.0,54291.0,0.89888154]
[1725807531452,0.08512574,54292.0,54291.0,0.89788154]
[1725807531668,0.08512574,54292.0,54291.0,0.89888154]
[1725807531669,0.03086916,54292.0,54291.0,0.89888154]
[1725807531926,0.11275404,54292.0,54291.0,0.89788154]
[1725807532132,0.02986916,54292.0,54291.0,0.89788154]
[1725807532345,0.02986916,54292.0,54291.0,0.89688154]
[1725807532551,0.11275404,54292.0,54291.0,0.89688154]
[1725807532761,0.03086916,54292.0,54291.0,0.89788154]
[1725807533382,0.03168416,54292.0,54291.0,0.89788154]
[1725807534915,0.03168416,54292.0,54291.0,0.16111154]
[1725807535132,0.03168416,54292.0,54291.0,0.15192]
[1725807535133,0.28954833,54292.0,54291.0,0.15192]
[1725807535352,0.87895233,54292.0,54291.0,0.15192]
[1725807535601,1.10544719,54292.0,54291.0,0.15192]
[1725807535827,0.67160373,54292.0,54291.0,0.15092]
[1725807536234,0.67260373,54292.0,54291.0,0.15192]
[1725807536644,0.67060373,54292.0,54291.0,0.14992]
[1725807536865,0.67060373,54292.0,54291.0,0.15092]
[1725807537098,0.64273457,54292.0,54291.0,0.15092]
[1725807538395,0.64373457,54292.0,54291.0,0.15092]
[1725807538601,0.64273457,54292.0,54291.0,0.14992]
[1725807538807,0.64173457,54292.0,54291.0,0.14992]
[1725807539013,0.64773457,54292.0,54291.0,0.15092]
[1725807539223,0.67454412,54292.0,54291.0,0.15092]
[1725807539451,0.67354412,54292.0,54291.0,0.14992]
[1725807539681,0.67354412,54292.0,54291.0,0.06792]
[1725807539682,0.77354412,54292.0,54291.0,0.06792]
[1725807539895,0.76854412,54292.0,54291.0,0.06792]
[1725807540296,0.77354412,54292.0,54291.0,0.06792]
[1725807540526,0.77354412,54292.0,54291.0,0.06292]
[1725807540759,0.77354412,54292.0,54291.0,0.06792]
[1725807541205,1.06824612,54292.0,54291.0,0.06792]
[1725807542325,1.06324612,54292.0,54291.0,0.06792]
[1725807542540,1.23401588,54292.0,54291.0,0.00662]
[1725807543393,1.06324612,54292.0,54291.0,0.00662]
[1725807543609,0.76854412,54292.0,54291.0,0.00662]
[1725807543815,1.06824612,54292.0,54291.0,0.00662]
[1725807544037,1.06324612,54292.0,54291.0,0.00662]
[1725807545548,1.23401588,54292.0,54291.0,0.00662]
[1725807546019,1.23001588,54292.0,54291.0,0.00762]
[1725807546712,1.22901588,54292.0,54291.0,0.00662]
[1725807546925,1.24784259,54292.0,54291.0,0.00762]
[1725807547120,1.24884259,54292.0,54291.0,0.00762]
[1725807547349,1.24884259,54292.0,54291.0,0.00662]
[1725807548115,1.08303882,54292.0,54291.0,0.00662]
[1725807548328,1.24884259,54292.0,54291.0,0.00662]
[1725807548527,1.08303882,54292.0,54291.0,0.00662]
[1725807548727,1.24884259,54292.0,54291.0,0.00762]
[1725807549126,1.24784259,54292.0,54291.0,0.00662]
[1725807549514,1.24784259,54292.0,54291.0,0.00762]
[1725807549908,1.25084259,54292.0,54291.0,0.00762]
[1725807550306,1.25084259,54292.0,54291.0,0.00662]
[1725807550521,1.27671424,54292.0,54291.0,0.00762]
[1725807550839,1.27971424,54292.0,54291.0,0.00762]
[1725807551047,0.95820269,54292.0,54291.0,0.07072]
[1725807551258,0.79239892,54292.0,54291.0,0.07991154]
[1725807551462,0.79239892,54292.0,54291.0,0.16051154]
[1725807551660,0.7807117,54292.0,54291.0,0.16051154]
[1725807552316,0.7777117,54292.0,54291.0,0.16051154]
[1725807552645,0.7827117,54292.0,54291.0,0.15951154]
[1725807552848,0.3356587,54292.0,54291.0,0.15951154]
[1725807553327,0.3386587,54292.0,54291.0,0.15951154]
[1725807553945,0.3386587,54292.0,54291.0,0.16051154]
[1725807554153,0.3356587,54292.0,54291.0,0.16051154]
[1725807554378,0.3356587,54292.0,54291.0,0.15951154]
[1725807555977,0.3366587,54292.0,54291.0,0.16051154]
[1725807556332,0.3366587,54292.0,54291.0,0.15951154]
[1725807556540,0.33362043,54292.0,54291.0,0.15951154]
[1725807556750,0.33462043,54292.0,54291.0,0.16051154]
[1725807557592,0.33462043,54292.0,54291.0,0.15951154]
[1725807557900,0.03668826,54292.0,54291.0,0.16051154]
[1725807558272,0.32221481,54292.0,54291.0,0.16051154]
[1725807558488,0.18403926,54292.0,54291.0,0.16051154]
[1725807558832,0.03668826,54292.0,54291.0,0.16051154]
[1725807559041,0.11254252,54292.0,54291.0,0.16051154]
[1725807559253,0.002,54292.0,54291.0,0.16051154]
[1725807559459,0.001,54292.0,54291.0,0.16051154]
[1725807559689,0.11154557,54292.0,54291.0,0.16051154]
[1725807559919,0.11254557,54292.0,54291.0,0.16051154]
[1725807561197,0.21254557,54292.0,54291.0,0.16051154]
[1725807561420,0.35990236,54292.0,54291.0,0.16051154]
[1725807561650,0.21255136,54292.0,54291.0,0.16051154]
[1725807561872,0.102,54292.0,54291.0,0.16051154]
[1725807562104,0.838755,54292.0,54291.0,0.01681154]
[1725807562539,0.97696337,54292.0,54291.0,0.01681154]
[1725807562971,0.97596337,54292.0,54291.0,0.01581154]
[1725807563209,0.97596337,54292.0,54291.0,0.01681154]
[1725807563415,0.97596337,54292.0,54291.0,0.01562]
[1725807563416,0.86662614,54292.0,54291.0,0.01562]
[1725807563624,0.86562614,54292.0,54291.0,0.00662]
[1725807563833,0.98440478,54292.0,54291.0,0.00662]
[1725807564061,0.98540478,54292.0,54291.0,0.00762]
[1725807565862,0.86662614,54292.0,54291.0,0.00762]
[1725807567181,0.837755,54292.0,54291.0,0.00762]
[1725807567364,0.836755,54292.0,54291.0,0.00662]
[1725807567594,0.83757,54292.0,54291.0,0.00762]
[1725807567803,0.83857,54292.0,54291.0,0.00762]
[1725807568862,0.83757,54292.0,54291.0,0.00662]
[1725807569279,0.83757,54292.0,54291.0,0.00762]
[1725807569771,0.83857,54292.0,54291.0,0.00662]
[1725807569978,0.83757,54292.0,54291.0,0.00262]
[1725807570193,0.84057,54292.0,54291.0,0.00762]
[1725807570403,0.86944145,54292.0,54291.0,0.00762]
[1725807570638,0.86944145,54292.0,54291.0,0.15741154]
[1725807570639,0.28003745,54292.0,54291.0,0.15741154]
[1725807571760,0.13268645,54292.0,54291.0,0.15741154]
[1725807571976,0.13268645,54292.0,54291.0,0.15641154]
[1725807572418,0.13068645,54292.0,54291.0,0.15741154]
[1725807572860,0.31523262,54292.0,54291.0,0.15741154]
[1725807573074,0.31523262,54292.0,54291.0,0.14441154]
[1725807573299,0.31423262,54292.0,54291.0,0.15641154]
[1725807573528,0.31423262,54292.0,54291.0,0.15741154]
[1725807573735,0.31523262,54292.0,54291.0,0.15741154]
[1725807575049,0.46258362,54292.0,54291.0,0.15641154]
[1725807575285,0.46158362,54292.0,54291.0,0.15641154]
[1725807575506,0.46258362,54292.0,54291.0,0.15741154]
[1725807575941,0.46158362,54292.0,54291.0,0.15641154]
[1725807576422,0.46379177,54292.0,54291.0,0.15741154]
[1725807576859,0.31644077,54292.0,54291.0,0.15741154]
[1725807577080,0.28756932,54292.0,54291.0,0.15741154]
[1725807577580,0.43492032,54292.0,54291.0,0.15741154]
[1725807578474,0.60089598,54292.0,54291.0,0.15741154]
[1725807578688,0.43492032,54292.0,54291.0,0.15741154]
[1725807578912,0.28756932,54292.0,54291.0,0.15741154]
[1725807580017,0.43492032,54292.0,54291.0,0.07712]
[1725807580228,0.43492032,54292.0,54291.0,0.07831154]
[1725807580229,1.02432432,54292.0,54291.0,0.07831154]
[1725807580451,1.3176752,54292.0,54291.0,0.01681154]
[1725807580904,1.3176752,54292.0,54291.0,0.01562]
[1725807581379,1.3176752,54292.0,54291.0,0.01681154]
[1725807581608,1.3176752,54292.0,54291.0,0.01562]
[1725807581822,1.3166752,54292.0,54291.0,0.01581154]
[1725807582039,1.3176752,54292.0,54291.0,0.01681154]
[1725807582260,1.3166752,54292.0,54291.0,0.01681154]
[1725807582488,1.3166752,54292.0,54291.0,0.01581154]
[1725807582957,1.3176752,54292.0,54291.0,0.01562]
[1725807583368,1.3166752,54292.0,54291.0,0.01462]
[1725807583572,1.3176752,54292.0,54291.0,0.01562]
[1725807584056,1.3176752,54292.0,54291.0,0.00762]
[1725807584503,1.3186752,54292.0,54291.0,0.00762]
[1725807584714,1.3176752,54292.0,54291.0,0.00762]
[1725807584931,1.6113772,54292.0,54291.0,0.00662]
[1725807585139,1.6113772,54292.0,54291.0,0.00762]
[1725807585599,1.6113772,54292.0,54291.0,0.00662]
[1725807586030,1.6123772,54292.0,54291.0,0.00762]
[1725807586240,1.59833312,54292.0,54291.0,0.00762]
[1725807586935,1.56946221,54292.0,54291.0,0.00762]
[1725807588649,1.56846221,54292.0,54291.0,0.00662]
[1725807588850,1.56846221,54292.0,54291.0,0.00762]
[1725807589294,1.75119278,54292.0,54291.0,0.00762]
[1725807589529,1.81319278,54292.0,54291.0,0.00762]
[1725807589732,1.81319278,54292.0,54291.0,0.00662]
[1725807589939,1.81319278,54292.0,54291.0,0.00762]
[1725807590359,1.84206478,54292.0,54291.0,0.00662]
[1725807590787,1.84106478,54292.0,54291.0,0.00662]
[1725807590994,1.84306478,54292.0,54291.0,0.00662]
[1725807591422,1.84106478,54292.0,54291.0,0.00662]
[1725807591851,1.84206478,54292.0,54291.0,0.00762]
[1725807592282,1.84206478,54292.0,54291.0,0.00662]
[1725807592500,1.84206478,54292.0,54291.0,0.00762]
[1725807592961,1.66033421,54292.0,54291.0,0.00762]
[1725807594027,1.1126255,54292.0,54291.0,0.00762]
[1725807594438,1.00651198,54292.0,54291.0,0.00762]
[1725807594656,1.30121398,54292.0,54291.0,0.00762]
[1725807596630,1.40121398,54292.0,54291.0,0.00762]
[1725807597098,1.37234198,54292.0,54291.0,0.00762]
[1725807597333,1.45084198,54292.0,54291.0,0.00762]
[1725807597551,1.60468351,54292.0,54291.0,0.00762]
[1725807598024,1.60468351,54292.0,54291.0,0.00262]
[1725807598236,1.60468351,54292.0,54291.0,0.00762]
[1725807598902,1.45084198,54292.0,54291.0,0.00762]
[1725807600245,1.47971444,54292.0,54291.0,0.00715]
[1725807600687,1.47820704,54292.0,54291.0,0.00715]
[1725807601370,1.44933458,54292.0,54291.0,0.00715]
[1725807601560,1.37083458,54292.0,54291.0,0.00615]
[1725807601829,1.36983458,54292.0,54291.0,0.00715]
[1725807602295,1.37183458,54292.0,54291.0,0.00715]
[1725807602761,1.30983458,54292.0,54291.0,0.00715]
[1725807603026,1.01513258,54292.0,54291.0,0.00715]
[1725807603234,1.01594758,54292.0,54291.0,0.00715]
[1725807604338,0.83957,54292.0,54291.0,0.00715]
[1725807604571,1.27098358,54292.0,54291.0,0.00715]
[1725807605022,1.26898358,54292.0,54291.0,0.00715]
[1725807605477,1.27198358,54292.0,54291.0,0.00615]
[1725807605704,1.27298358,54292.0,54291.0,0.00615]
[1725807606153,1.56768558,54292.0,54291.0,0.00615]
[1725807606373,1.56668558,54292.0,54291.0,0.00615]
[1725807606604,1.56668558,54292.0,54291.0,0.00715]
[1725807606827,1.56368558,54292.0,54291.0,0.00715]
[1725807607046,1.56368558,54292.0,54291.0,0.00615]
[1725807607496,1.56368558,54292.0,54291.0,0.00715]
[1725807608424,1.56568558,54292.0,54291.0,0.00715]
[1725807608641,1.56368558,54292.0,54291.0,0.00715]